bitfinex-derivatives/quotes_BNBF0:USTF0_20241225
["timestamp","ask_amount","ask_price","bid_price","bid_amount"]
[1735159817398,0.28455168,702.86,700.96,1.06518007]
[1735159817597,0.28455168,702.86,700.98,0.28531484]
[1735159818100,0.26191589,702.85,700.98,0.28531484]
[1735159822094,0.26198201,702.84,700.98,0.28531484]
[1735159822297,0.26198201,702.83,700.98,0.28531484]
[1735159822499,0.26198201,702.82,700.98,0.28531484]
[1735159822703,0.26198201,702.81,700.98,0.28531484]
[1735159822903,0.26198201,702.8,700.98,0.28531484]
[1735159823097,0.26198201,702.85,700.98,0.28531484]
[1735159823299,0.26198201,702.84,700.98,0.28531484]
[1735159823501,0.26198201,702.83,700.98,0.28531484]
[1735159823703,0.26198201,702.82,700.98,0.28531484]
[1735159823902,0.26198201,702.81,700.98,0.28531484]
[1735159824099,0.26198201,702.85,700.98,0.28531484]
[1735159824300,0.26204217,702.84,700.98,0.28531484]
[1735159824503,0.26204217,702.83,700.98,0.28531484]
[1735159824702,0.26204217,702.82,700.98,0.28531484]
[1735159824903,0.26206596,702.81,700.98,0.28531484]
[1735159825100,0.26206596,702.85,700.98,0.28531484]
[1735159825308,0.26206596,702.84,700.98,0.28531484]
[1735159825505,0.26206596,702.83,700.98,0.28531484]
[1735159825706,0.26206596,702.82,700.98,0.28531484]
[1735159825900,0.26206596,702.81,700.98,0.28531484]
[1735159826104,0.26206596,702.8,700.98,0.28531484]
[1735159826304,0.26206596,702.79,700.98,0.28531484]
[1735159826505,0.26206596,702.78,700.98,0.28531484]
[1735159826706,0.28455168,702.86,700.98,0.28531484]
[1735159826707,0.26206596,702.77,700.98,0.28531484]
[1735159827008,0.26206596,702.76,700.98,0.28531484]
[1735159827308,0.26206596,702.75,700.98,0.28531484]
[1735159827504,0.26206596,702.74,700.98,0.28531484]
[1735159827812,0.26207796,702.73,700.98,0.28531484]
[1735159828000,0.28455168,702.86,700.98,0.28531484]
[1735159828001,0.26207796,702.72,700.98,0.28531484]
[1735159828203,0.26207796,702.71,700.98,0.28531484]
[1735159828507,0.26207796,702.7,700.98,0.28531484]
[1735159828808,0.26207796,702.69,700.98,0.28531484]
[1735159829009,0.26207796,702.68,700.98,0.28531484]
[1735159829304,0.26207796,702.67,700.98,0.28531484]
[1735159829502,0.26207796,702.66,700.98,0.28531484]
[1735159829703,0.26207796,702.65,700.98,0.28531484]
[1735159829908,0.26207796,702.64,700.98,0.28531484]
[1735159830108,0.26207796,702.63,700.98,0.28531484]
[1735159830504,0.26207796,702.62,700.98,0.28531484]
[1735159830711,0.26207796,702.61,700.98,0.28531484]
[1735159830913,0.26207796,702.6,700.98,0.28531484]
[1735159831212,0.26209165,702.59,700.98,0.28531484]
[1735159831412,0.26209165,702.58,700.98,0.28531484]
[1735159831614,0.26209165,702.57,700.98,0.28531484]
[1735159831913,0.26209165,702.56,700.98,0.28531484]
[1735159832215,0.26209165,702.55,700.98,0.28531484]
[1735159832411,0.26209165,702.54,700.98,0.28531484]
[1735159832609,0.26209165,702.53,700.98,0.28531484]
[1735159832809,0.26209165,702.52,700.98,0.28531484]
[1735159833009,0.28455168,702.86,700.98,0.28531484]
[1735159833211,0.26203698,702.85,700.98,0.28531484]
[1735159833407,0.26203698,702.84,700.98,0.28531484]
[1735159833607,0.26203698,702.83,700.98,0.28531484]
[1735159833914,0.26203698,702.82,700.98,0.28531484]
[1735159834111,0.26203698,702.81,700.98,0.28531484]
[1735159834314,0.26203698,702.8,700.98,0.28531484]
[1735159834515,0.26203698,702.79,700.98,0.28531484]
[1735159834815,0.26203698,702.78,700.98,0.28531484]
[1735159835115,0.26203698,702.77,700.98,0.28531484]
[1735159835310,0.26203698,702.76,700.98,0.28531484]
[1735159835516,0.26203698,702.75,700.98,0.28531484]
[1735159835810,0.26206271,702.74,700.98,0.28531484]
[1735159836012,0.26206271,702.73,700.98,0.28531484]
[1735159836211,0.26206271,702.72,700.98,0.28531484]
[1735159836409,0.26206271,702.71,700.98,0.28531484]
[1735159836715,0.26206271,702.7,700.98,0.28531484]
[1735159836909,0.26204202,702.85,700.98,0.28531484]
[1735159837115,0.26204202,702.84,700.98,0.28531484]
[1735159837315,0.26204202,702.83,700.98,0.28531484]
[1735159837515,0.26204202,702.82,700.98,0.28531484]
[1735159837717,0.26204202,702.81,700.98,0.28531484]
[1735159837914,0.26204202,702.8,700.98,0.28531484]
[1735159838115,0.26204202,702.79,700.98,0.28531484]
[1735159838312,0.26204202,702.78,700.98,0.28531484]
[1735159838515,0.2620422,702.77,700.98,0.28531484]
[1735159838811,0.2620422,702.76,700.98,0.28531484]
[1735159839011,0.2620422,702.75,700.98,0.28531484]
[1735159839212,0.28455168,702.86,700.98,0.28531484]
[1735159839409,0.26205369,702.85,700.98,0.28531484]
[1735159839611,0.26205369,702.84,700.98,0.28531484]
[1735159839814,0.26205369,702.83,700.98,0.28531484]
[1735159840012,0.26205369,702.82,700.98,0.28531484]
[1735159840216,0.26205369,702.81,700.98,0.28531484]
[1735159840415,0.26205369,702.8,700.98,0.28531484]
[1735159840614,0.26205369,702.79,700.98,0.28531484]
[1735159840812,0.26205369,702.78,700.98,0.28531484]
[1735159841116,0.26205369,702.77,700.98,0.28531484]
[1735159841318,0.26204686,702.76,700.98,0.28531484]
[1735159841518,0.26204686,702.75,700.98,0.28531484]
[1735159841713,0.26204686,702.74,700.98,0.28531484]
[1735159841917,0.26204686,702.73,700.98,0.28531484]
[1735159842119,0.26204686,702.72,700.98,0.28531484]
[1735159842315,0.26204686,702.71,700.98,0.28531484]
[1735159842516,0.26204686,702.7,700.98,0.28531484]
[1735159842717,0.26204686,702.69,700.98,0.28531484]
[1735159842914,0.26204686,702.68,700.98,0.28531484]
[1735159843218,0.26204686,702.67,700.98,0.28531484]
[1735159843416,0.26204686,702.66,700.98,0.28531484]
[1735159843614,0.26204686,702.65,700.98,0.28531484]
[1735159843814,0.26204686,702.64,700.98,0.28531484]
[1735159844014,0.26205363,702.63,700.98,0.28531484]
[1735159844217,0.26205363,702.62,700.98,0.28531484]
[1735159844419,0.26205363,702.61,700.98,0.28531484]
[1735159844616,0.26205363,702.6,700.98,0.28531484]
[1735159844820,0.28466509,702.58,700.98,0.28531484]
[1735159845120,0.26205363,702.57,700.98,0.28531484]
[1735159845321,0.26205363,702.56,700.98,0.28531484]
[1735159845521,0.26205363,702.55,700.98,0.28531484]
[1735159845717,0.26205363,702.54,700.98,0.28531484]
[1735159845922,0.26205363,702.53,700.98,0.28531484]
[1735159846122,0.26205363,702.52,700.98,0.28531484]
[1735159846323,0.26205363,702.51,700.98,0.28531484]
[1735159846623,0.28466509,702.58,700.98,0.28531484]
[1735159846825,0.26206257,702.57,700.98,0.28531484]
[1735159847623,0.26205741,702.56,700.98,0.28531484]
[1735159847822,0.26205741,702.55,700.98,0.28531484]
[1735159848017,0.26205741,702.54,700.98,0.28531484]
[1735159848322,0.26205741,702.53,700.98,0.28531484]
[1735159848623,0.26205741,702.52,700.98,0.28531484]
[1735159848822,0.26205741,702.51,700.98,0.28531484]
[1735159849023,0.26205741,702.57,700.98,0.28531484]
[1735159849225,0.26205741,702.56,700.98,0.28531484]
[1735159849621,0.26206885,702.55,700.98,0.28531484]
[1735159849823,0.26206885,702.54,700.98,0.28531484]
[1735159850123,0.26206885,702.53,700.98,0.28531484]
[1735159850320,0.26206885,702.52,700.98,0.28531484]
[1735159850524,0.2846975,702.5,700.98,0.28531484]
[1735159850724,0.26206885,702.49,700.98,0.28531484]
[1735159851325,1.31947884,702.49,700.98,0.28531484]
[1735159851523,0.26206885,702.48,700.98,0.28531484]
[1735159852321,0.2846975,702.5,700.98,0.28531484]
[1735159852322,1.05740999,702.43,700.98,0.28531484]
[1735159852523,0.26205596,702.42,700.98,0.28531484]
[1735159853424,0.26205596,702.41,700.98,0.28531484]
[1735159853624,0.26205596,702.4,700.98,0.28531484]
[1735159853825,0.26205596,702.39,700.98,0.28531484]
[1735159854027,0.26205596,702.38,700.98,0.28531484]
[1735159854224,0.26205596,702.37,700.98,0.28531484]
[1735159854427,0.26205596,702.36,700.98,0.28531484]
[1735159854623,0.26205596,702.35,700.98,0.28531484]
[1735159854824,0.2846975,702.5,700.98,0.28531484]
[1735159855027,0.26204982,702.49,700.98,0.28531484]
[1735159856828,1.05740999,702.48,700.98,0.28531484]
[1735159857029,0.26204982,702.47,700.98,0.28531484]
[1735159857427,1.05740999,702.46,700.98,0.28531484]
[1735159857631,0.26204982,702.45,700.98,0.28531484]
[1735159858631,1.05740999,702.43,700.98,0.28531484]
[1735159858831,0.26204982,702.42,700.98,0.28531484]
[1735159859433,1.05740999,702.41,700.98,0.28531484]
[1735159859632,0.26204982,702.4,700.98,0.28531484]
[1735159860532,1.05740999,702.44,700.98,0.28531484]
[1735159860732,0.26210096,702.43,700.98,0.28531484]
[1735159861334,1.05740999,702.24,700.98,0.28531484]
[1735159861637,0.26210096,702.23,700.98,0.28531484]
[1735159862231,1.05740999,702.2,700.98,0.28531484]
[1735159862428,0.26208193,702.19,700.98,0.28531484]
[1735159862932,1.05740999,702.17,700.98,0.28531484]
[1735159863134,0.26208193,702.16,700.98,0.28531484]
[1735159863639,0.26208193,702.15,700.98,0.28531484]
[1735159863833,0.26208193,702.14,700.98,0.28531484]
[1735159864038,0.26208193,702.13,700.98,0.28531484]
[1735159864235,0.26208193,702.12,700.98,0.28531484]
[1735159864542,1.05740999,702.19,700.98,0.28531484]
[1735159864740,0.26208468,702.18,700.98,0.28531484]
[1735159865134,0.26208468,702.17,700.98,0.28531484]
[1735159865334,0.26208468,702.16,700.98,0.28531484]
[1735159865538,0.26208468,702.15,700.98,0.28531484]
[1735159865739,0.26208468,702.14,700.98,0.28531484]
[1735159865937,0.26208468,702.13,700.98,0.28531484]
[1735159866540,1.05740999,702.12,700.98,0.28531484]
[1735159866740,0.26208468,702.11,700.98,0.28531484]
[1735159867946,0.26208468,702.12,700.98,0.28531484]
[1735159868146,0.26208468,702.11,700.98,0.28531484]
[1735159868343,0.26208468,702.1,700.98,0.28531484]
[1735159868544,1.05740999,702.13,700.98,0.28531484]
[1735159868545,0.28486376,702.09,700.98,0.28531484]
[1735159879354,0.26212596,702.08,700.98,0.28531484]
[1735159879550,0.26212596,702.08,700.37,1.06518007]
[1735159879751,0.26212596,702.08,692.52,0.52355127]
[1735159879752,0.26215718,702.07,700.44,1.06518007]
[1735159879951,0.26215718,702.06,700.44,1.06518007]
[1735159880154,0.26215718,702.05,700.44,1.06518007]
[1735159880353,0.26215718,702.04,700.44,1.06518007]
[1735159880550,0.28486376,702.09,700.44,1.06518007]
[1735159880746,0.26216837,702.08,700.38,0.28555926]
[1735159881655,0.2621832,702.07,700.38,0.28555926]
[1735159881847,0.2621832,702.06,700.38,0.28555926]
[1735159882051,0.2621832,702.05,700.38,0.28555926]
[1735159882251,0.2621832,702.04,700.38,0.28555926]
[1735159882550,0.2621832,702.03,700.38,0.28555926]
[1735159882752,0.2621832,702.02,700.38,0.28555926]
[1735159882947,0.2621832,702.01,700.38,0.28555926]
[1735159883149,0.28486376,702.09,700.38,0.28555926]
[1735159883354,0.26217288,702.08,700.38,0.28555926]
[1735159884253,0.26216772,702.07,700.38,0.28555926]
[1735159884450,0.28486376,702.09,700.38,0.28555926]
[1735159884654,0.26216792,702.08,700.38,0.28555926]
[1735159889858,0.26216304,702.07,700.38,0.28555926]
[1735159890059,0.28486376,702.09,700.38,0.28555926]
[1735159890060,0.26216304,702.06,700.38,0.28555926]
[1735159890256,0.26216304,702.05,700.38,0.28555926]
[1735159890461,0.26216304,702.04,700.38,0.28555926]
[1735159890661,0.26216304,702.03,700.38,0.28555926]
[1735159890861,0.26216304,702.02,700.38,0.28555926]
[1735159891057,0.26216304,702.01,700.38,0.28555926]
[1735159891365,0.28486376,702.09,700.38,0.28555926]
[1735159911080,0.28486376,702.09,700.38,1.35073933]
[1735159911879,0.28486376,702.09,700.56,1.06518007]
[1735159912081,0.28486376,702.09,700.57,0.28548182]
[1735159912776,0.28486376,702.09,700.57,1.35066189]
[1735159914083,0.28486376,702.09,700.63,1.06518007]
[1735159914381,0.28486376,702.09,700.64,0.28545329]
[1735159915479,0.2620719,702.08,700.64,0.28545329]
[1735159916579,0.28486376,702.09,700.64,0.28545329]
[1735159919480,0.28486376,702.09,700.66,1.06518007]
[1735159919682,0.28486376,702.09,700.67,0.28544107]
[1735159922282,0.28486376,702.09,700.67,1.35062114]
[1735159922884,0.28486376,702.09,700.68,1.06518007]
[1735159923085,0.28486376,702.09,700.69,0.28543293]
[1735159924079,0.28486376,702.09,700.7,1.06518007]
[1735159924286,0.28486376,702.09,700.71,0.28542478]
[1735159924685,0.28486376,702.09,700.71,1.35060485]
[1735159925085,0.26208469,702.08,700.71,1.35060485]
[1735159925586,0.28486376,702.09,700.71,0.28542478]
[1735159931187,0.28486376,702.09,700.71,1.35060485]
[1735159932191,0.28486376,702.09,700.74,1.06518007]
[1735159933090,0.28486376,702.09,700.77,1.06518007]
[1735159934187,0.28486376,702.09,700.8,1.06518007]
[1735159934589,0.28486376,702.09,700.81,0.28538405]
[1735159935287,0.28486376,702.09,700.86,1.06518007]
[1735159936190,0.28486376,702.09,700.85,1.06518007]
[1735159937085,0.28486376,702.09,700.84,1.06518007]
[1735159937492,0.28486376,702.09,700.84,1.3505519]
[1735159938693,0.28486376,702.09,700.84,0.28537183]
[1735159953107,0.28486376,702.09,700.85,1.06518007]
[1735159953407,0.28486376,702.09,700.86,0.28536369]
[1735159963115,0.28486376,702.09,700.88,1.06518007]
[1735159963315,0.28486376,702.09,700.89,0.28535148]
[1735159964125,0.28486376,702.09,700.9,1.06518007]
[1735159964419,0.28486376,702.09,700.91,0.28534333]
[1735159967023,0.28486376,702.09,700.91,1.3505234]
[1735159968018,0.28486376,702.09,700.94,1.06518007]
[1735159968316,0.28486376,702.09,700.95,0.28532705]
[1735159968921,0.28486376,702.09,700.98,1.06518007]
[1735159970825,0.28486376,702.09,700.95,1.35050712]
[1735159971726,1.05740999,702.42,700.95,1.35050712]
[1735159972026,0.26198352,702.41,700.96,1.06518007]
[1735159972321,0.26198352,702.41,700.97,0.28531891]
[1735159972927,0.26198352,702.4,700.99,1.06518007]
[1735159973127,0.26198352,702.39,701.0,0.2853067]
[1735159973329,0.26198352,702.38,701.0,0.2853067]
[1735159973525,0.26198352,702.37,701.0,0.2853067]
[1735159973723,0.26198352,702.36,701.01,1.06518007]
[1735159973923,0.26198352,702.35,701.02,0.28529856]
[1735159974127,0.26198352,702.34,701.02,0.28529856]
[1735159974328,0.26198352,702.33,701.02,0.28529856]
[1735159974527,0.26198352,702.32,701.02,0.28529856]
[1735159974722,0.26198352,702.31,701.02,0.28529856]
[1735159974923,0.26198352,702.3,701.02,0.28529856]
[1735159975229,1.05740999,702.4,701.02,0.28529856]
[1735159975430,0.26198649,702.39,701.02,0.28529856]
[1735159976331,1.31939648,702.39,701.02,0.28529856]
[1735159976530,0.26199252,702.38,701.02,0.28529856]
[1735159977233,0.26199252,702.37,701.02,0.28529856]
[1735159977431,0.26199252,702.36,701.02,0.28529856]
[1735159977626,0.26199252,702.35,701.02,0.28529856]
[1735159977833,0.26199252,702.34,701.02,0.28529856]
[1735159978131,0.26199252,702.33,701.02,0.28529856]
[1735159978430,0.26199252,702.32,701.02,0.28529856]
[1735159978732,0.26199252,702.31,701.02,0.28529856]
[1735159979031,1.05740999,702.4,701.02,0.28529856]
[1735159979231,0.26198974,702.39,701.02,0.28529856]
[1735159979928,0.26198974,702.38,701.02,0.28529856]
[1735159980127,1.05740999,702.41,701.02,0.28529856]
[1735159980728,0.26200192,702.4,701.02,0.28529856]
[1735159980928,0.28467724,702.55,701.02,0.28529856]
[1735159981129,0.26200594,702.54,701.02,0.28529856]
[1735159981332,0.26201075,702.53,701.02,0.28529856]
[1735159981534,0.54670015,702.52,701.02,0.28529856]
[1735159981832,0.26201075,702.51,701.02,0.28529856]
[1735159982036,0.2846975,702.5,701.02,0.28529856]
[1735159982236,0.26201075,702.49,701.02,0.28529856]
[1735159982429,0.28470561,702.48,701.02,0.28529856]
[1735159982634,0.26201075,702.47,701.02,0.28529856]
[1735159982930,0.28471372,702.46,701.02,0.28529856]
[1735159983132,0.26201075,702.45,701.02,0.28529856]
[1735159984134,0.26202164,702.44,701.02,0.28529856]
[1735159984437,0.26202164,702.43,701.02,0.28529856]
[1735159984635,0.26202164,702.42,701.02,0.28529856]
[1735159984836,0.26202164,702.41,701.02,0.28529856]
[1735159985037,0.26202164,702.4,701.02,0.28529856]
[1735159985332,0.26202164,702.39,701.02,0.28529856]
[1735159985529,0.26202164,702.38,701.02,0.28529856]
[1735159985733,0.26202164,702.37,701.02,0.28529856]
[1735159985935,0.26202164,702.36,701.02,0.28529856]
[1735159986132,0.26202164,702.35,701.02,0.28529856]
[1735159986330,0.28471372,702.46,701.02,0.28529856]
[1735159986331,0.26202164,702.34,701.02,0.28529856]
[1735159986533,0.26202164,702.33,701.02,0.28529856]
[1735159986733,0.26208373,702.32,701.02,0.28529856]
[1735159986935,0.26208373,702.31,701.02,0.28529856]
[1735159987135,0.26208373,702.39,701.02,0.28529856]
[1735159987330,0.26208373,702.38,701.02,0.28529856]
[1735159987533,0.26208373,702.37,701.02,0.28529856]
[1735159987737,0.26208373,702.36,701.02,0.28529856]
[1735159987930,0.26208373,702.35,701.02,0.28529856]
[1735159988236,0.26208373,702.34,701.02,0.28529856]
[1735159988531,0.26208373,702.33,701.02,0.28529856]
[1735159988731,0.26208373,702.32,701.02,0.28529856]
[1735159988935,0.26208373,702.31,701.02,0.28529856]
[1735159989139,0.26208373,702.3,701.02,0.28529856]
[1735159989437,1.34212371,702.46,701.02,0.28529856]
[1735159989438,0.26208373,702.29,701.02,0.28529856]
[1735159989631,0.28478669,702.28,701.02,0.28529856]
[1735159989937,0.26208373,702.27,701.02,0.28529856]
[1735159991833,0.2847948,702.26,701.02,0.28529856]
[1735159992033,0.26208373,702.25,701.02,0.28529856]
[1735159992434,0.54688744,702.24,701.02,0.28529856]
[1735159992633,0.26208453,702.23,701.02,0.28529856]
[1735159992839,0.28481102,702.22,701.02,0.28529856]
[1735159993035,0.26208453,702.21,701.02,0.28529856]
[1735159996742,0.28481102,702.22,701.02,0.28529856]
[1735160006951,1.05740999,703.13,701.02,0.28529856]
[1735160007256,0.28445051,703.11,701.02,0.28529856]
[1735160007454,0.26190867,703.1,701.02,0.28529856]
[1735160008551,0.28445051,703.11,701.02,0.28529856]
[1735160008854,0.26189821,703.1,701.02,0.28529856]
[1735160011257,0.28445051,703.11,701.02,0.28529856]
[1735160011455,0.26189831,703.1,701.02,0.28529856]
[1735160012155,0.28445051,703.11,701.02,0.28529856]
[1735160012156,0.26189991,703.09,701.02,0.28529856]
[1735160012355,0.26189991,703.08,701.02,0.28529856]
[1735160012554,0.26189991,703.07,701.02,0.28529856]
[1735160012748,0.26189991,703.06,701.02,0.28529856]
[1735160012952,0.26189991,703.05,701.02,0.28529856]
[1735160013150,0.26189991,703.04,701.02,0.28529856]
[1735160013449,0.26189991,703.03,701.02,0.28529856]
[1735160013652,0.26189991,703.02,701.02,0.28529856]
[1735160013854,0.26189991,703.01,701.02,0.28529856]
[1735160014050,0.26189991,703.0,701.02,0.28529856]
[1735160014257,0.26189742,702.99,701.02,0.28529856]
[1735160014550,0.26189742,702.98,701.02,0.28529856]
[1735160014755,0.26189742,702.97,701.02,0.28529856]
[1735160015056,0.26189742,702.96,701.02,0.28529856]
[1735160015251,0.26189742,702.95,701.02,0.28529856]
[1735160015450,0.26189742,702.94,701.02,0.28529856]
[1735160015649,0.26189742,702.93,701.02,0.28529856]
[1735160015853,0.26189742,702.92,701.02,0.28529856]
[1735160016151,0.26189742,702.91,701.02,0.28529856]
[1735160016353,0.26189742,702.9,701.02,0.28529856]
[1735160016549,0.26189742,702.89,701.02,0.28529856]
[1735160016749,0.26189742,702.88,701.02,0.28529856]
[1735160016954,0.2618984,702.87,701.02,0.28529856]
[1735160017149,0.2618984,702.86,701.02,0.28529856]
[1735160017354,0.2618984,702.85,701.02,0.28529856]
[1735160017550,0.2618984,702.84,701.02,0.28529856]
[1735160017750,0.2618984,702.83,701.02,0.28529856]
[1735160017952,0.2618984,702.82,701.02,0.28529856]
[1735160018155,0.2618984,702.81,701.02,0.28529856]
[1735160018349,0.2618984,702.8,701.02,0.28529856]
[1735160018551,0.2618984,702.79,701.02,0.28529856]
[1735160018755,0.2618984,702.78,701.02,0.28529856]
[1735160019057,0.2618984,702.77,701.02,0.28529856]
[1735160019255,0.2618984,702.76,701.02,0.28529856]
[1735160019452,0.2618984,702.75,701.02,0.28529856]
[1735160019755,0.26189821,702.74,701.02,0.28529856]
[1735160019956,0.26189821,702.73,701.02,0.28529856]
[1735160020152,0.26189821,702.72,701.02,0.28529856]
[1735160020354,0.26189821,702.71,701.02,0.28529856]
[1735160020552,0.26190067,703.1,701.02,0.28529856]
[1735160020757,0.26190067,703.09,701.02,0.28529856]
[1735160020957,0.26190067,703.08,701.02,0.28529856]
[1735160021257,0.28447074,703.06,701.02,0.28529856]
[1735160021459,0.26190067,703.05,701.02,0.28529856]
[1735160021857,0.28448288,703.03,701.02,0.28529856]
[1735160022058,0.26190067,703.02,701.02,0.28529856]
[1735160022554,0.26190187,703.01,701.02,0.28529856]
[1735160022757,0.26190187,703.0,701.02,0.28529856]
[1735160022959,0.26190187,702.99,701.02,0.28529856]
[1735160023159,0.26190187,702.98,701.02,0.28529856]
[1735160023457,0.26190187,702.97,701.02,0.28529856]
[1735160023658,0.26190187,702.96,701.02,0.28529856]
[1735160023859,0.26190187,702.95,701.02,0.28529856]
[1735160024059,0.26190187,702.94,701.02,0.28529856]
[1735160024259,0.26190187,702.93,701.02,0.28529856]
[1735160024460,0.26190187,702.92,701.02,0.28529856]
[1735160024658,0.26190187,702.91,701.02,0.28529856]
[1735160024860,0.26190187,702.9,701.02,0.28529856]
[1735160025159,0.26190187,702.89,701.02,0.28529856]
[1735160025361,0.28454359,702.88,701.02,0.28529856]
[1735160025556,0.26190187,702.87,701.02,0.28529856]
[1735160025961,0.28455168,702.86,701.02,0.28529856]
[1735160026155,0.26190187,702.85,701.02,0.28529856]
[1735160026361,0.28455978,702.84,701.02,0.28529856]
[1735160026556,0.26190187,702.83,701.02,0.28529856]
[1735160028063,0.26189882,702.82,701.02,0.28529856]
[1735160028355,0.26189882,702.81,701.02,0.28529856]
[1735160028555,0.26189882,702.8,701.02,0.28529856]
[1735160028755,0.26189882,702.79,701.02,0.28529856]
[1735160028958,0.26189882,702.78,701.02,0.28529856]
[1735160029159,0.26189882,702.77,701.02,0.28529856]
[1735160029362,0.26189882,702.76,701.02,0.28529856]
[1735160029660,0.26189882,702.75,701.02,0.28529856]
[1735160029861,0.26189882,702.74,701.02,0.28529856]
[1735160030061,0.26189882,702.73,701.02,0.28529856]
[1735160030360,0.26189882,702.72,701.02,0.28529856]
[1735160030557,0.26189882,702.71,701.02,0.28529856]
[1735160030760,0.28455978,702.84,701.02,0.28529856]
[1735160030957,0.26189343,702.83,701.02,0.28529856]
[1735160031161,0.26189335,702.82,701.02,0.28529856]
[1735160031361,0.26189335,702.81,701.02,0.28529856]
[1735160031663,0.26189335,702.8,701.02,0.28529856]
[1735160031861,0.26189335,702.79,701.02,0.28529856]
[1735160032060,0.26189335,702.78,701.02,0.28529856]
[1735160032261,0.26189335,702.77,701.02,0.28529856]
[1735160032457,0.26189335,702.76,701.02,0.28529856]
[1735160032666,0.26189335,702.75,701.02,0.28529856]
[1735160032863,0.26189335,702.74,701.02,0.28529856]
[1735160033058,0.26189335,702.73,701.02,0.28529856]
[1735160033364,0.26189335,702.72,701.02,0.28529856]
[1735160033559,0.28455978,702.84,701.02,0.28529856]
[1735160033765,0.2618884,702.83,701.02,0.28529856]
[1735160035567,0.28455978,702.84,701.02,0.28529856]
[1735160041372,0.26188615,702.83,701.02,0.28529856]
[1735160043976,0.26191255,702.82,701.02,0.28529856]
[1735160044177,0.26191255,702.81,701.02,0.28529856]
[1735160044377,1.05740999,702.59,701.16,1.06518007]
[1735160044577,0.26191255,702.58,701.16,1.06518007]
[1735160044875,0.26191681,702.57,701.16,1.06518007]
[1735160045176,0.26191681,702.56,701.09,1.06518007]
[1735160045378,0.26191681,702.55,701.09,1.06518007]
[1735160045573,0.26191681,702.54,701.09,1.06518007]
[1735160045769,0.26191681,702.53,701.09,1.06518007]
[1735160045975,1.05740999,702.62,701.09,1.06518007]
[1735160046177,1.05740999,702.6,701.13,1.06518007]
[1735160046376,0.26191478,702.59,701.13,1.06518007]
[1735160046971,0.26191478,702.59,701.14,1.06518007]
[1735160047173,0.26191478,702.58,701.14,1.06518007]
[1735160047370,0.26191478,702.57,701.14,1.06518007]
[1735160047570,1.05740999,702.62,701.14,1.06518007]
[1735160048177,1.34196977,702.84,701.02,0.28529856]
[1735160048376,0.26194121,702.83,701.02,0.28529856]
[1735160048678,0.28457193,702.81,701.02,0.28529856]
[1735160048876,0.26194121,702.8,701.02,0.28529856]
[1735160049175,1.05740999,702.77,701.02,0.28529856]
[1735160049373,0.28459622,702.75,701.02,0.28529856]
[1735160049575,0.26195459,702.74,701.02,0.28529856]
[1735160049976,0.28460432,702.73,701.02,0.28529856]
[1735160050172,0.26195459,702.72,701.02,0.28529856]
[1735160050373,0.28461242,702.71,701.02,0.28529856]
[1735160050576,0.26195459,702.7,701.02,0.28529856]
[1735160052076,0.26193626,702.69,701.02,0.28529856]
[1735160052280,0.26193626,702.68,701.02,0.28529856]
[1735160052475,0.26193626,702.67,701.02,0.28529856]
[1735160052673,0.26193626,702.66,701.02,0.28529856]
[1735160052877,0.28461242,702.71,701.02,0.28529856]
[1735160053077,0.26193603,702.7,701.02,0.28529856]
[1735160053881,1.05740999,702.64,701.08,1.06518007]
[1735160054081,0.26193603,702.63,701.08,1.06518007]
[1735160054876,1.05740999,702.62,701.05,1.06518007]
[1735160055076,0.5465983,702.61,701.06,0.28528228]
[1735160055279,0.26194537,702.6,701.06,0.28528228]
[1735160055781,0.28466103,702.59,701.06,0.28528228]
[1735160056002,0.26194537,702.58,701.06,0.28528228]
[1735160056580,0.26194537,702.58,701.06,1.35046235]
[1735160057784,0.54661111,702.57,701.06,1.35046235]
[1735160057979,0.54661516,702.56,701.06,1.35046235]
[1735160058181,0.26194197,702.55,701.06,1.35046235]
[1735160058583,0.26194197,702.55,701.06,0.28528228]
[1735160060185,0.28467319,702.56,701.06,0.28528228]
[1735160060485,0.26195165,702.55,701.06,0.28528228]
[1735160061185,0.28467319,702.56,701.06,0.28528228]
[1735160061385,0.26195769,702.55,701.06,0.28528228]
[1735160061780,0.28467319,702.56,701.06,0.28528228]
[1735160063384,0.26197477,702.55,701.06,0.28528228]
[1735160065885,0.2620287,702.54,701.06,0.28528228]
[1735160066084,0.2620287,702.53,701.06,0.28528228]
[1735160066285,0.2620287,702.52,701.06,0.28528228]
[1735160066488,0.2620287,702.51,701.06,0.28528228]
[1735160066690,0.2620287,702.5,701.06,0.28528228]
[1735160066890,0.2620287,702.49,701.06,0.28528228]
[1735160067091,0.2620287,702.48,701.06,0.28528228]
[1735160067286,0.2620287,702.47,701.06,0.28528228]
[1735160067488,0.2620287,702.46,701.06,0.28528228]
[1735160067786,0.2620287,702.45,701.06,0.28528228]
[1735160067990,0.2620287,702.44,701.06,0.28528228]
[1735160068187,0.28467319,702.56,701.06,0.28528228]
[1735160068188,0.2620287,702.43,701.06,0.28528228]
[1735160068390,0.28467319,702.56,701.06,0.28528228]
[1735160068589,0.26203288,702.55,701.06,0.28528228]
[1735160069489,0.26203187,702.54,701.06,0.28528228]
[1735160069688,0.28467319,702.56,701.06,0.28528228]
[1735160069689,0.26203187,702.53,701.06,0.28528228]
[1735160069892,0.28467319,702.56,701.06,0.28528228]
[1735160070086,0.26203531,702.55,701.06,0.28528228]